bitfinex/quotes_SOLUSD_20240613
["timestamp","ask_amount","ask_price","bid_price","bid_amount"]
[1718295560084,2.5039,147.77,147.71,2.5049]
[1718295560285,8.5057,147.78,147.72,2.5046]
[1718295560791,6.0019,147.78,147.7,2.5049]
[1718295560980,45.68,147.77,147.7,0.0556591]
[1718295561179,2.5041,147.76,147.7,2.5606591]
[1718295561390,48.0139,147.77,147.71,2.5049]
[1718295561774,48.0139,147.77,147.7,0.0556591]
[1718295561775,48.0139,147.77,147.72,2.5047]
[1718295562009,2.5046,147.73,147.7,0.0556591]
[1718295562225,2.8449,147.72,147.7,0.0556591]
[1718295562373,0.17,147.71,147.64,15.3072]
[1718295562571,0.17,147.71,147.64,17.8131]
[1718295562572,2.5051,147.7,147.64,17.8131]
[1718295563183,0.17,147.7,147.63,2.5062]
[1718295563392,2.8452,147.7,147.64,2.506]
[1718295563581,0.17,147.69,147.63,2.5061]
[1718295563781,0.34,147.69,147.64,2.506]
[1718295564777,2.8452,147.69,147.63,2.5062]
[1718295566782,2.5062,147.63,147.62,0.05568927]
[1718295566994,2.5062,147.63,147.56,18.7228]
[1718295567195,2.6761,147.64,147.58,2.507]
[1718295567395,2.5062,147.63,147.57,2.5072]
[1718295567603,2.5064,147.62,147.53,5.0157]
[1718295567822,2.5064,147.62,147.56,2.5073]
[1718295568484,2.5064,147.62,147.53,12.5395]
[1718295568485,0.17,147.62,147.55,2.5076]
[1718295568688,2.5066,147.61,147.55,2.5075]
[1718295568882,2.5066,147.61,147.52,35.1912]
[1718295569080,2.5067,147.6,147.54,2.5077]
[1718295569487,0.17,147.6,147.55,2.5076]
[1718295569684,0.17,147.6,147.52,27.6669]
[1718295569889,0.34,147.61,147.54,5.0155]
[1718295570110,45.17,147.62,147.54,5.0155]
[1718295570309,23.0163,147.63,147.54,5.0155]
[1718295570513,0.17,147.62,147.55,0.05571569]
[1718295570710,0.17,147.62,147.57,2.5072]
[1718295571122,2.6764,147.62,147.56,2.5073]
[1718295571488,6.2424,147.64,147.59,2.5068]
[1718295571691,15.3271,147.66,147.58,2.507]
[1718295572007,15.3271,147.66,147.57,2.56280814]
[1718295572008,2.5062,147.64,147.57,2.56280814]
[1718295572210,2.5062,147.64,147.57,22.56280814]
[1718295572698,2.5061,147.64,147.58,2.507]
[1718295573415,2.5061,147.64,147.57,2.56280814]
[1718295573622,2.5067,147.61,147.57,0.05570814]
[1718295573805,2.8468,147.6,147.57,0.05570814]
[1718295574129,2.6766,147.61,147.57,0.05570814]
[1718295574698,2.5067,147.6,147.57,0.05570814]
[1718295574901,2.5071,147.58,147.57,0.05570814]
[1718295575220,2.507,147.59,147.57,0.05570814]
[1718295575593,2.6768,147.6,147.57,0.05570814]
[1718295576217,2.6769,147.59,147.57,0.05570814]
[1718295576386,0.17,147.6,147.57,0.05570814]
[1718295576387,2.8471,147.58,147.57,0.05570814]
[1718295576593,0.17,147.58,147.57,0.05570814]
[1718295576813,2.507,147.59,147.57,0.05570814]
[1718295577021,0.17,147.59,147.57,0.05570814]
[1718295577213,0.68,147.59,147.57,0.05570814]
[1718295577398,2.6771,147.58,147.57,0.05570814]
[1718295577602,3.1871,147.58,147.57,0.05570814]
[1718295577807,0.17,147.58,147.57,0.05570814]
[1718295578009,47.5068,147.6,147.57,0.05570814]
[1718295578010,0.34,147.59,147.57,0.05570814]
[1718295578193,3.1869,147.59,147.57,0.05570814]
[1718295578821,0.17,147.59,147.57,0.05570814]
[1718295579138,2.8469,147.59,147.57,0.05570814]
[1718295579717,2.5071,147.58,147.57,0.05570814]
[1718295580096,23.3871,147.58,147.57,0.05570814]
[1718295580295,0.17,147.57,147.5,20.0]
[1718295580524,0.17,147.57,147.49,22.5085]
[1718295580525,2.5077,147.55,147.49,22.5085]
[1718295580730,0.17,147.54,147.49,22.5085]
[1718295580905,0.17,147.54,147.5,2.5084]
[1718295581224,0.17,147.54,147.5,20.0]
[1718295581429,2.5075,147.56,147.5,22.5083]
[1718295581597,2.5075,147.56,147.5,2.5083]
[1718295582908,2.5076,147.55,147.49,22.5085]
[1718295583933,2.5076,147.55,147.5,0.05573457]
[1718295584134,2.5078,147.54,147.5,0.05573457]
[1718295584436,2.5076,147.55,147.5,0.05573457]
[1718295584735,2.5078,147.54,147.5,0.05573457]
[1718295584909,2.5076,147.55,147.5,0.05573457]
[1718295585110,0.17,147.55,147.5,0.05573457]
[1718295585334,5.0153,147.55,147.5,0.05573457]
[1718295585535,2.5078,147.54,147.5,0.05573457]
[1718295585845,0.17,147.55,147.5,0.05573457]
[1718295586034,2.6777,147.55,147.5,0.05573457]
[1718295586235,0.17,147.54,147.5,0.05573457]
[1718295586437,2.5082,147.52,147.5,0.05573457]
[1718295586740,0.34,147.54,147.5,0.05573457]
[1718295587436,0.34,147.54,147.5,2.56413457]
[1718295587758,2.5072,147.57,147.51,2.5082]
[1718295588227,2.5074,147.56,147.5,2.56413457]
[1718295588425,2.5073,147.57,147.51,2.5083]
[1718295588725,2.5074,147.56,147.5,2.56413457]
[1718295590219,2.5073,147.57,147.51,2.5639308]
[1718295590412,2.5071,147.58,147.52,2.5081]
[1718295591054,2.5075,147.56,147.51,0.0557308]
[1718295591956,0.17,147.55,147.51,0.0557308]
[1718295592262,2.5077,147.55,147.51,0.0557308]
[1718295593132,5.1846,147.57,147.51,0.0557308]
[1718295593336,2.5076,147.55,147.51,0.0557308]
[1718295593716,3.0175,147.56,147.51,0.0557308]
[1718295593917,3.0175,147.56,147.51,2.5639308]
[1718295594150,11.0763,147.61,147.52,16.3858]
[1718295594317,2.507,147.59,147.53,22.5078]
[1718295594727,2.5071,147.58,147.53,22.5078]
[1718295595540,2.5072,147.57,147.53,20.0]
[1718295595752,2.5074,147.56,147.53,20.0]
[1718295596431,2.5074,147.56,147.52,16.3858]
[1718295596753,2.5073,147.57,147.52,18.8939]
[1718295597118,2.5073,147.57,147.52,16.3858]
[1718295597319,2.6775,147.56,147.52,16.3858]
[1718295597668,2.5075,147.56,147.52,16.3858]
[1718295598226,2.6776,147.55,147.51,0.0557308]
[1718295598535,2.5076,147.55,147.51,0.0557308]
[1718295600551,2.6777,147.55,147.51,0.0557308]
[1718295600724,2.678,147.53,147.51,0.0557308]
[1718295601054,0.34,147.54,147.51,0.0557308]
[1718295601239,0.17,147.55,147.51,0.0557308]
[1718295601423,0.68,147.55,147.51,2.5639308]
[1718295601834,17.5486,147.59,147.55,2.5075]
[1718295601835,0.17,147.59,147.55,2.5075]
[1718295602034,8.5696,147.61,147.54,5.0155]
[1718295602229,2.5065,147.62,147.57,2.5072]
[1718295602448,22.7742,147.65,147.52,5.0159]
[1718295602720,100.0,147.62,147.51,2.5639308]
[1718295603040,100.0,147.62,147.51,0.0557308]
[1718295603041,2.508,147.53,147.51,0.0557308]
[1718295603253,2.5077,147.55,147.51,0.0557308]
[1718295603421,0.51,147.56,147.51,0.0557308]
[1718295603751,117.5461,147.62,147.51,5.0722308]
[1718295603953,2.5071,147.58,147.52,2.508]
[1718295604327,70.6936,147.6,147.53,2.5079]
[1718295604657,0.17,147.58,147.53,2.5079]
[1718295604959,3.1871,147.58,147.53,2.5079]
[1718295605141,3.1871,147.58,147.52,22.508]
[1718295605142,2.8471,147.58,147.52,22.508]
[1718295605331,0.34,147.58,147.52,20.0]
[1718295605527,0.17,147.59,147.52,32.5403]
[1718295605750,2.8469,147.59,147.53,2.5078]
[1718295606322,2.5067,147.61,147.53,12.5396]
[1718295606666,2.5061,147.64,147.58,2.507]
[1718295606954,2.5061,147.64,147.56,5.0147]
[1718295606955,5.0109,147.68,147.6,2.5066]
[1718295607127,278.529,147.69,147.63,2.5061]
[1718295607330,255.6052,147.69,147.63,2.5061]
[1718295607756,255.6052,147.69,147.61,41.9577]
[1718295607757,253.1,147.69,147.61,41.9577]
[1718295607975,2.5056,147.67,147.61,44.4642]
[1718295608481,2.505,147.71,147.64,2.5059]
[1718295608779,2.5045,147.73,147.64,12.5299]
[1718295608954,2.5042,147.75,147.66,5.0114]
[1718295609154,2.5043,147.75,147.69,2.5052]
[1718295609651,253.1,147.76,147.68,2.5053]
[1718295609853,2.5043,147.75,147.68,2.5053]
[1718295610063,5.0085,147.75,147.67,20.0]
[1718295610272,2.5046,147.73,147.66,2.5056]
[1718295610976,2.5044,147.74,147.67,2.5055]
[1718295611701,0.51,147.73,147.67,2.5055]
[1718295612090,3.0145,147.73,147.66,2.5056]
[1718295612879,2.6747,147.72,147.65,2.5058]
[1718295613244,0.17,147.72,147.66,2.5057]
[1718295613877,0.17,147.72,147.67,2.5055]
[1718295614557,0.17,147.72,147.66,2.5056]
[1718295614963,2.6747,147.72,147.66,2.5056]
[1718295615467,0.17,147.72,147.67,2.5055]
[1718295616073,25.48,147.78,147.64,20.0]
[1718295616389,15.3461,147.79,147.69,5.0104]
[1718295616703,2.5045,147.74,147.7,20.0]
[1718295616980,2.5045,147.74,147.68,2.5053]
[1718295617181,2.5047,147.72,147.66,22.5057]
[1718295617384,2.505,147.7,147.64,2.506]
[1718295617562,2.5052,147.69,147.63,2.5061]
[1718295617981,0.51,147.71,147.61,26.9707]
[1718295618187,2.6751,147.7,147.64,2.506]
[1718295618357,0.17,147.7,147.67,2.5055]
[1718295618562,0.17,147.7,147.61,21.9577]
[1718295618563,27.883,147.75,147.68,2.5053]
[1718295618564,0.17,147.74,147.68,2.5053]
[1718295618770,45.68,147.74,147.63,25.48]
[1718295619218,2.5051,147.7,147.61,21.9577]
[1718295619368,2.6745,147.73,147.67,2.5054]
[1718295619562,3.0147,147.72,147.66,2.5057]
[1718295619900,2.8447,147.72,147.65,22.5058]
[1718295620091,0.17,147.71,147.66,22.5057]
[1718295620262,0.17,147.71,147.66,2.5057]
[1718295621608,0.17,147.71,147.64,5.012]
[1718295621769,0.17,147.71,147.65,20.0]
[1718295621970,0.17,147.71,147.66,2.5056]
[1718295622592,0.17,147.71,147.65,22.5058]
[1718295622893,0.17,147.71,147.66,2.5057]
[1718295624492,2.6749,147.71,147.65,2.5058]
[1718295624695,2.8451,147.7,147.63,22.5061]
[1718295624999,2.6752,147.69,147.64,20.0]
[1718295625194,2.5054,147.68,147.62,2.5063]
[1718295625396,2.5054,147.68,147.61,24.4642]
[1718295625889,2.5054,147.68,147.62,2.5064]
[1718295626488,2.5056,147.67,147.61,18.1757]
[1718295626683,0.34,147.67,147.61,15.6692]
[1718295626883,0.17,147.67,147.62,2.5064]
[1718295627093,0.51,147.67,147.62,2.5064]
[1718295627408,0.51,147.67,147.61,15.6692]
[1718295627409,0.17,147.67,147.61,20.682]
[1718295627614,0.17,147.67,147.63,2.5061]
[1718295627784,0.68,147.68,147.63,2.5061]
[1718295627986,0.51,147.68,147.61,20.682]
[1718295628215,38.9628,147.72,147.63,12.5311]
[1718295628216,0.17,147.71,147.63,12.5311]
[1718295628507,3.185,147.71,147.65,2.5058]
[1718295628718,2.5051,147.7,147.64,22.506]
[1718295628898,0.17,147.69,147.64,2.506]
[1718295629107,16.4199,147.72,147.66,5.0113]
[1718295629288,36.7899,147.72,147.63,20.0]
[1718295629483,2.5051,147.7,147.64,2.506]
[1718295630298,2.5055,147.68,147.62,22.5063]
[1718295630489,0.17,147.68,147.62,20.0]
[1718295630683,0.17,147.68,147.63,2.5061]
[1718295630916,0.17,147.71,147.66,2.5056]
[1718295631127,0.51,147.71,147.67,2.5055]
[1718295631411,0.17,147.71,147.64,25.012]
[1718295631616,0.17,147.71,147.66,2.5056]
[1718295632824,0.51,147.71,147.66,2.5056]
[1718295632988,0.51,147.71,147.68,2.5053]
[1718295633191,6.5068,147.74,147.69,2.5051]
[1718295633390,2.5049,147.72,147.68,20.0]
[1718295633597,2.5049,147.72,147.64,26.4907]
[1718295633598,6.5068,147.74,147.64,31.5027]
[1718295633816,2.5046,147.73,147.67,2.5054]
[1718295634323,6.5068,147.74,147.66,7.5171]
[1718295634491,0.51,147.73,147.67,20.0]
[1718295634690,2.5042,147.75,147.67,20.0]
[1718295635002,20.3093,147.76,147.67,20.0]
[1718295635308,15.301,147.76,147.66,27.5172]
[1718295635615,15.301,147.76,147.68,2.5053]
[1718295635917,2.5043,147.75,147.69,2.5051]
[1718295636295,0.17,147.75,147.7,2.505]
[1718295636496,3.0142,147.75,147.69,2.5051]
[1718295636893,0.17,147.74,147.68,20.0]
[1718295637108,3.0144,147.74,147.68,2.5053]
[1718295638301,2.5045,147.73,147.68,2.5053]
[1718295638815,2.505,147.71,147.66,20.0]
[1718295639001,0.17,147.72,147.64,6.4907]
[1718295639002,0.68,147.72,147.67,2.5055]
[1718295639198,0.68,147.72,147.68,2.5053]
[1718295639199,0.17,147.72,147.68,2.5053]
[1718295639411,2.6747,147.73,147.67,2.5055]
[1718295639592,3.0147,147.72,147.66,2.5056]
[1718295639794,2.6749,147.71,147.66,2.5056]
[1718295640116,2.5051,147.7,147.64,20.0]
[1718295640326,2.505,147.7,147.65,2.5058]
[1718295640524,2.505,147.7,147.64,20.0]
[1718295640826,2.505,147.7,147.63,20.0]
[1718295641114,2.675,147.71,147.65,2.5058]
[1718295641315,2.675,147.71,147.64,2.506]
[1718295641316,2.8452,147.7,147.64,2.506]
[1718295641521,3.0153,147.69,147.63,20.0]
[1718295641706,3.1853,147.69,147.63,2.5061]
[1718295642522,3.1853,147.69,147.64,2.506]
[1718295642717,0.68,147.69,147.64,2.506]
[1718295643019,3.1852,147.69,147.64,2.506]
[1718295644008,2.5054,147.68,147.63,2.5062]
[1718295644227,0.17,147.67,147.62,22.5063]
[1718295644414,13.0362,147.69,147.61,20.0]
[1718295644615,2.5057,147.67,147.61,22.5065]
[1718295644813,0.17,147.66,147.61,2.5064]
[1718295645008,0.17,147.66,147.59,12.5344]
[1718295645209,0.17,147.66,147.62,2.5064]
[1718295645540,2.5057,147.66,147.61,2.5065]
[1718295645743,0.17,147.65,147.62,2.5064]
[1718295646042,0.17,147.65,147.6,2.5066]
[1718295646251,0.17,147.65,147.62,2.5063]
[1718295646426,0.17,147.65,147.61,20.0]
[1718295646608,0.17,147.65,147.61,2.5065]
[1718295646807,0.17,147.65,147.61,22.5065]
[1718295647245,0.17,147.65,147.62,2.5064]
[1718295647814,0.17,147.65,147.61,2.5065]
[1718295648057,0.17,147.65,147.62,2.5064]
[1718295648344,0.17,147.67,147.63,2.5062]
[1718295648640,0.68,147.67,147.63,2.5062]
[1718295648850,0.68,147.67,147.62,2.5063]
[1718295649937,3.1856,147.67,147.62,2.5063]
[1718295650534,2.5057,147.66,147.61,2.5065]
[1718295651140,2.5057,147.66,147.6,22.5066]
[1718295651347,3.0159,147.65,147.6,2.5067]
[1718295651520,2.5059,147.65,147.6,2.5067]
[1718295651721,2.5061,147.64,147.59,20.0]
[1718295651921,2.5061,147.64,147.59,2.5069]
[1718295653037,2.846,147.65,147.59,2.5069]
[1718295653242,2.846,147.65,147.6,2.5067]
[1718295653653,20.37,147.68,147.61,5.0131]
[1718295653654,2.5054,147.68,147.61,5.0131]
[1718295653836,2.5055,147.67,147.6,10.027]
[1718295654171,2.5055,147.67,147.62,2.5063]
[1718295654373,70.0105,147.69,147.61,20.0]
[1718295654374,5.0108,147.68,147.61,20.0]
[1718295654664,2.5059,147.65,147.6,2.5066]
[1718295655226,2.5059,147.65,147.59,22.5068]
[1718295655448,2.5059,147.65,147.6,2.5067]
[1718295655656,0.34,147.66,147.59,22.5068]
[1718295655657,2.5061,147.64,147.59,22.5068]
[1718295655951,2.506,147.65,147.59,22.5068]
[1718295656151,2.506,147.65,147.6,2.5067]
[1718295657731,0.17,147.64,147.6,2.5067]
[1718295660255,0.17,147.64,147.59,22.5068]
[1718295660457,0.17,147.64,147.56,2.5073]
[1718295660458,0.17,147.62,147.56,2.5073]
[1718295660627,45.51,147.62,147.57,2.5071]
[1718295660830,0.17,147.61,147.59,2.5069]
[1718295661038,0.17,147.62,147.55,20.0]
[1718295661243,0.17,147.64,147.58,17.5488]
[1718295661453,45.51,147.64,147.6,2.5067]
[1718295661665,45.51,147.64,147.61,2.5065]
[1718295661666,0.34,147.64,147.61,2.5065]
[1718295661866,6.016,147.65,147.55,20.0]
[1718295662157,390.8,147.76,147.64,2.506]
[1718295662158,6.4247,147.69,147.64,2.506]
[1718295662359,8.93,147.69,147.62,5.0128]
[1718295662571,15.7069,147.71,147.68,2.5053]
[1718295662773,15.7069,147.71,147.65,20.0]
[1718295663060,10.9756,147.67,147.61,8.47]
[1718295663263,8.47,147.66,147.62,20.0]
[1718295663756,8.47,147.65,147.6,2.5066]
[1718295664166,8.81,147.64,147.6,20.0]
[1718295664333,8.81,147.64,147.57,24.0548]
[1718295664334,8.47,147.63,147.57,24.0548]
[1718295664533,0.34,147.64,147.58,20.0]
[1718295664534,8.47,147.62,147.58,20.0]
[1718295664740,8.47,147.63,147.58,22.507]
[1718295664950,18.2674,147.64,147.58,22.507]
[1718295665162,0.34,147.63,147.58,2.507]
[1718295665339,0.17,147.62,147.58,2.507]
[1718295666362,2.8464,147.62,147.54,15.7174]
[1718295666558,0.17,147.62,147.58,2.5071]
[1718295667634,15.0812,147.64,147.6,2.5066]
[1718295667937,6.5159,147.67,147.61,2.5066]
[1718295668155,45.0,147.66,147.61,2.5066]
[1718295668465,2.5059,147.65,147.58,22.507]
[1718295668635,45.0,147.66,147.56,22.5073]
[1718295668636,2.5063,147.63,147.56,22.5073]
[1718295668835,2.5064,147.62,147.56,2.5073]
[1718295669059,0.34,147.61,147.56,2.5073]
[1718295669290,0.17,147.61,147.55,20.0]
[1718295669569,0.34,147.62,147.57,2.5071]
[1718295670473,0.34,147.62,147.58,2.507]
[1718295670673,0.17,147.63,147.58,2.507]
[1718295670839,20.34,147.66,147.55,20.0]
[1718295671039,2.5062,147.63,147.57,2.5071]
[1718295671241,2.5062,147.63,147.58,2.5071]
[1718295671467,2.5062,147.63,147.57,2.5071]
[1718295671673,2.5066,147.61,147.52,7.5242]
[1718295671974,0.17,147.6,147.55,2.5075]
[1718295672175,45.17,147.62,147.51,16.2354308]
[1718295672337,0.17,147.62,147.58,2.5069]
[1718295672542,0.17,147.63,147.58,2.5069]
[1718295672543,0.68,147.63,147.58,2.5069]
[1718295672943,3.1862,147.63,147.58,2.5069]
[1718295673687,0.68,147.63,147.58,2.5069]
[1718295673979,3.1863,147.63,147.57,2.5072]
[1718295674270,2.5067,147.61,147.56,22.5074]
[1718295674476,0.51,147.6,147.54,22.5077]
[1718295674671,0.51,147.6,147.55,2.5076]
[1718295674972,2.5064,147.62,147.56,2.5073]
[1718295675276,45.17,147.63,147.56,5.0147]
[1718295675469,0.34,147.64,147.59,2.5068]
[1718295675682,0.51,147.63,147.6,2.5066]
[1718295676092,6.5159,147.67,147.59,20.0]
[1718295676386,6.5159,147.67,147.62,2.5063]
[1718295676991,6.5159,147.67,147.62,5.0127]
[1718295677185,6.5159,147.67,147.63,22.5061]
[1718295677495,2.5057,147.66,147.58,12.5353]
[1718295677779,6.5159,147.67,147.61,2.5065]
[1718295678181,0.17,147.66,147.61,2.5065]
[1718295678389,15.0593,147.68,147.64,2.5059]
[1718295678557,15.0593,147.68,147.63,22.5062]
[1718295678957,15.0593,147.68,147.63,20.0]
[1718295678958,17.5647,147.68,147.63,20.0]
[1718295679160,17.5647,147.68,147.61,22.5065]
[1718295679161,2.5056,147.67,147.61,22.5065]
[1718295679363,17.5647,147.68,147.62,2.5064]
[1718295679558,15.2293,147.68,147.63,2.5062]
[1718295679985,15.2293,147.68,147.61,20.0]
[1718295680194,15.2293,147.68,147.63,2.5061]
[1718295680364,0.17,147.68,147.63,2.5061]
[1718295680562,0.51,147.68,147.63,2.5061]
[1718295680766,6.4287,147.7,147.61,20.0]
[1718295680965,6.4287,147.7,147.66,2.5056]
[1718295681565,18.5543,147.72,147.66,2.5056]
[1718295682088,2.6749,147.71,147.65,2.5058]
[1718295682856,2.6751,147.7,147.65,2.5058]
[1718295683059,2.6751,147.7,147.64,2.5059]
[1718295683370,2.6751,147.7,147.63,20.0]
[1718295683371,2.5052,147.69,147.63,20.0]
[1718295683567,3.0154,147.68,147.62,22.5063]
[1718295683772,2.6754,147.68,147.62,2.5063]
[1718295684193,2.5058,147.66,147.6,2.5067]
[1718295684857,2.6759,147.65,147.59,2.5068]
[1718295685262,2.676,147.65,147.59,2.5069]
[1718295685898,0.17,147.65,147.6,2.5067]
[1718295686186,3.0159,147.65,147.59,2.5068]
[1718295686364,0.17,147.64,147.59,2.5068]
[1718295686701,0.51,147.65,147.61,2.5065]
[1718295687066,0.51,147.65,147.6,2.5067]
[1718295688168,3.0159,147.65,147.59,2.5068]
[1718295688467,3.0159,147.65,147.6,2.5067]
[1718295688792,2.8459,147.65,147.58,20.0]
[1718295688972,0.34,147.65,147.6,2.5067]
[1718295689177,2.8459,147.65,147.6,2.5067]
[1718295689673,2.8459,147.65,147.59,2.5068]
[1718295689989,2.5061,147.64,147.59,2.5068]
[1718295690308,0.17,147.64,147.58,20.0]
[1718295690466,45.68,147.64,147.56,20.0]
[1718295690667,0.17,147.62,147.57,2.5072]
[1718295690867,0.68,147.62,147.58,2.507]
[1718295691582,0.68,147.62,147.57,2.5071]
[1718295691804,3.1864,147.62,147.57,2.5071]
[1718295692095,0.68,147.62,147.57,2.5072]
[1718295693596,45.0,147.64,147.56,20.0]
[1718295693790,48.016,147.65,147.59,2.5068]
[1718295694001,0.17,147.64,147.59,2.5068]
[1718295694331,2.5061,147.64,147.58,20.0]
[1718295694468,2.5061,147.64,147.58,22.507]
[1718295694796,0.17,147.65,147.59,2.5068]
[1718295695002,2.6759,147.65,147.59,2.5068]
[1718295695501,2.5061,147.64,147.59,2.5068]
[1718295695707,0.17,147.63,147.58,22.507]
[1718295696403,0.17,147.63,147.59,2.5068]
[1718295696576,3.0161,147.64,147.59,2.5068]
[1718295696783,3.0161,147.64,147.58,22.507]
[1718295697279,2.5062,147.63,147.58,22.507]
[1718295697480,2.5065,147.62,147.57,20.0]
[1718295697812,2.5065,147.62,147.56,2.5073]
[1718295698719,50.0127,147.63,147.55,22.5075]
[1718295698890,6.0688,147.61,147.55,2.5075]
[1718295699088,0.17,147.6,147.55,2.5075]
[1718295700626,2.5071,147.58,147.51,5.0721308]
[1718295700792,2.507,147.59,147.53,2.5078]
[1718295700997,2.507,147.59,147.51,5.0721308]
[1718295700998,3.1872,147.58,147.51,5.0721308]
[1718295701220,0.51,147.58,147.53,2.5078]
[1718295701400,0.17,147.58,147.53,2.5078]
[1718295701602,0.17,147.58,147.52,2.508]
[1718295701603,2.6771,147.58,147.52,2.508]
[1718295702195,2.6771,147.58,147.53,2.5079]
[1718295702524,2.5073,147.57,147.52,2.508]
[1718295703223,47.6772,147.58,147.52,2.508]
[1718295703825,47.6772,147.58,147.51,20.0557308]
[1718295703826,47.6772,147.58,147.53,2.5079]
[1718295704193,2.6772,147.58,147.53,2.5079]
[1718295704925,2.6772,147.58,147.52,2.508]
[1718295705913,2.5073,147.57,147.52,2.508]
[1718295706814,0.17,147.58,147.51,2.5639308]
[1718295706815,2.5075,147.56,147.51,2.5639308]
[1718295707033,5.0149,147.56,147.51,0.0557308]
[1718295707212,2.5078,147.54,147.51,0.0557308]
[1718295707413,2.8476,147.55,147.51,0.0557308]
[1718295707613,0.34,147.55,147.51,0.0557308]
[1718295707844,0.34,147.55,147.51,2.5639308]
[1718295708345,0.34,147.55,147.52,2.5081]
[1718295708550,0.17,147.55,147.51,2.5638308]
[1718295708722,0.51,147.56,147.51,2.5638308]
[1718295708923,3.0175,147.56,147.51,2.5638308]
[1718295709240,3.0175,147.56,147.51,0.0557308]
[1718295710039,0.17,147.55,147.51,0.0557308]
[1718295710343,2.5078,147.54,147.51,0.0557308]
[1718295710839,2.508,147.53,147.51,0.0557308]
[1718295711044,63.7326,147.54,147.51,0.0557308]
[1718295711721,61.2247,147.54,147.51,0.0557308]
[1718295712138,63.7325,147.54,147.51,0.0557308]
[1718295712316,16.2247,147.54,147.51,0.0557308]
[1718295712831,2.6781,147.53,147.51,0.0557308]
[1718295713138,0.68,147.52,147.51,0.0557308]
[1718295714336,23.1881,147.52,147.51,0.0557308]
[1718295714529,90.7612,147.52,147.51,0.0557308]
[1718295714938,2.509,147.47,147.42,2.5097]
[1718295715119,5.0174,147.49,147.4,16.3621]
[1718295715120,7.5263,147.49,147.4,16.3621]
[1718295715319,2.5088,147.48,147.42,2.5096]
[1718295715519,2.5088,147.48,147.42,2.5097]
[1718295715917,2.5088,147.48,147.43,2.5096]
[1718295716746,0.17,147.47,147.4,16.3621]
[1718295717048,2.679,147.47,147.42,2.5098]
[1718295717260,0.17,147.45,147.38,2.5104]
[1718295717433,2.5095,147.44,147.38,2.5104]
[1718295717849,0.17,147.45,147.37,2.5106]
[1718295717850,2.8497,147.43,147.37,2.5106]
[1718295718018,2.6797,147.43,147.37,2.5106]
[1718295718428,2.6797,147.43,147.38,2.5104]
[1718295718720,0.34,147.43,147.38,2.5104]
[1718295719136,0.34,147.43,147.36,15.15488752]
[1718295719137,0.17,147.43,147.39,2.5102]
[1718295719332,0.34,147.44,147.39,2.5102]
[1718295719650,0.34,147.44,147.37,5.0212]
[1718295719651,0.34,147.44,147.4,2.5101]
[1718295719954,20.34,147.44,147.39,2.5102]
[1718295720330,20.34,147.44,147.37,5.0212]
[1718295720331,22.8495,147.44,147.38,2.5104]
[1718295720948,20.34,147.44,147.39,2.5103]
[1718295721152,22.8495,147.44,147.39,2.5103]
[1718295721447,22.8495,147.44,147.38,2.5104]